Cogmind - Beta 15 @@@ ROGUE MODE // 2025.09.22 @ 11:26:55 Player: beans Result: Destroyed by P-60 Hacker with Shock Rifle Performance ------------- Evolutions (3) 1500 Regions Visited (7) 1400 Robots Destroyed (73) 365 Value Destroyed (2602) 2602 Prototype IDs (27) 540 Alien Tech Used (0) 0 Bonus (534) 534 TOTAL SCORE: 6941 Bonus ------- High Alert Combat Kills 154 Follower Combat Kills 80 Aligned with FarCom 300 Cogmind --------- Core Integrity 0/700 Matter 17/300 Energy 99/100 System Corruption 8% Temperature Cool (0) Movement Core (50) Location -7/Factory Parts ------- > --- POWER (2) -------- (None) > --- PROPULSION (4) --- (None) > --- UTILITY (5) ------ (None) > --- WEAPON (2) ------- (None) > --- INVENTORY (5) ---- Supersonic Drone Bay (1/1) Ion Burst Cannon Firepult Flak Cannon Peak State ------------ > --- POWER ------------ Light Nuclear Core Light Nuclear Core > --- PROPULSION ------- Aluminum Leg Aluminum Leg > --- UTILITY ---------- Improved Heat Sink Advanced Heat Sink High-capacity Storage Unit > --- WEAPON ----------- Firepult > --- INVENTORY -------- Thief Drone Bay Supersonic Drone Bay Ion Burst Cannon Plasma Cutter [Rating: 39] Favorites ----------- Power Ion Engine Engine Ion Engine Power Core Light Nuclear Core Propulsion Light Treads Treads Light Treads Leg Aluminum Leg Utility High-capacity Storage Unit Device Advanced Heat Sink Storage High-capacity Storage Unit Protection Hardened Heavy Armor Plating Weapon Medium Laser Energy Gun Medium Laser Energy Cannon Ion Burst Cannon Ballistic Gun Light Assault Rifle Ballistic Cannon Flak Cannon Launcher Grenade Launcher Special Weapon Plasma Cutter Build | -11 -10 -10 -10 -9 -8 -8 -7 ------- Run | Yrd Mat Min Exi Min Mat Sto Fac Slots Evolved 6 | . . . . . 4 . 2 Power 1 | . . . . . 1 . . Propulsion 2 | . . . . . . . 2 Utility 3 | . . . . . 3 . . Weapon . | . . . . . . . . Parts Attached 39 | 5 . 2 1 1 2 20 8 Power 9 | 1 . . . 1 . 6 1 Engine 7 | 1 . . . 1 . 4 1 Core 2 | . . . . . . 2 . Reactor . | . . . . . . . . Propulsion 8 | 2 . . . . . 5 1 Treads 6 | 2 . . . . . 3 1 Leg 2 | . . . . . . 2 . Wheel . | . . . . . . . . Hover . | . . . . . . . . Flight . | . . . . . . . . Utility 9 | . . 2 1 . . 3 3 Device 7 | . . 1 1 . . 3 2 Storage 1 | . . 1 . . . . . Processor . | . . . . . . . . Hackware . | . . . . . . . . Protection 1 | . . . . . . . 1 Artifact . | . . . . . . . . Weapon 13 | 2 . . . . 2 6 3 Energy Gun 3 | 2 . . . . . 1 . Energy Cannon 2 | . . . . . 1 1 . Ballistic Gun 3 | . . . . . 1 1 1 Ballistic Cannon 2 | . . . . . . . 2 Launcher 2 | . . . . . . 2 . Special Weapon 1 | . . . . . . 1 . Impact Weapon . | . . . . . . . . Slashing Weapon . | . . . . . . . . Piercing Weapon . | . . . . . . . . Special Melee Weapon . | . . . . . . . . Unidentified Prototypes 4 | . . 1 . . . 2 1 Parts Lost 21 | . . . . . 1 11 9 Power 7 | . . . . . 1 4 2 Propulsion 8 | . . . . . . 5 3 Utility 5 | . . . . . . 1 4 Weapon 1 | . . . . . . 1 . Highest Loss Streak 7 | . . . . . 1 3 7 To Critical Strikes . | . . . . . . . . Average Backups 5 | . . . 2 4 4 5 11 Power . | . . . . . . . . Propulsion . | . . . . . . . . Utility 1 | . . . . 1 1 2 3 Weapon 2 | . . . 1 2 1 2 6 Tool/Special . | . . . . . . . . Unused Backups 4 | . . . . . . . 4 Power . | . . . . . . . . Propulsion . | . . . . . . . . Utility 2 | . . . . . . . 2 Weapon 2 | . . . . . . . 2 Tool/Special . | . . . . . . . . Average Slot Usage (%) 71 | . 71 83 95 97 46 53 63 Engine 8 | . 14 14 14 14 7 4 5 Treads 20 | . 28 28 28 28 18 10 20 Leg 1 | . . . . . . 3 . Device 10 | . . 2 9 11 1 14 11 Storage 9 | . . 9 14 14 9 9 6 Protection 1 | . . . . . . . 5 Energy Gun 12 | . 28 28 28 28 3 . . Energy Cannon 1 | . . . . . 4 4 2 Ballistic Cannon 1 | . . . . . . . 9 Peak Build Rating 39 | 5 5 13 16 18 26 39 38 Average Rating 18 | 3 5 6 12 15 18 22 29 On Entrance 11 | . 5 5 13 9 18 7 38 Naked Turns 12 | . . . . . . . 12 Heaviest Build 80 | 8 8 52 52 51 69 74 80 Greatest Support 60 | 40 40 40 40 40 40 40 60 Greatest Overweight (x) 22 | . . 1 1 1 1 22 22 Average Overweight (x) 1 | . . . 1 1 . 2 1 Largest Inventory Capacity 20 | 5 5 20 20 20 20 20 20 Average Capacity 19 | 5 5 15 20 20 20 20 19 Most Carried 15 | 2 . 2 5 6 7 11 15 Average Carried 6 | . . . 3 5 4 6 12 Final Capacity 20 | 5 5 20 20 20 20 20 5 Final Carried 9 | . . 1 5 5 7 9 5 Class Distribution -------------------- 89% | Mutant 10% | Scavenger-Mutant Dominant Class ---------------- Mutant | -10/Materials Mutant | -10/Mines Mutant | -10/Exiles Mutant | -9/Mines Mutant | -8/Materials Mutant | -8/Storage Mutant | -7/Factory Resources | -11 -10 -10 -10 -9 -8 -8 -7 ----------- Run | Yrd Mat Min Exi Min Mat Sto Fac Matter Collected 991 | 198 . 62 . 90 26 353 262 Remotely . | . . . . . . . . Salvage Created 2630 | . . 135 . 49 123 2052 271 Parts 108 | . . 6 . 9 11 71 11 Haulers Intercepted 2 | . . . . . . 2 . Recyclers Shooed 3 | . . . . . . 3 . Parts Field Recycled . | . . . . . . . . Retrieved Matter . | . . . . . . . . Parts Self-Destructed . | . . . . . . . . Prevented . | . . . . . . . . Kills | -11 -10 -10 -10 -9 -8 -8 -7 ------- Run | Yrd Mat Min Exi Min Mat Sto Fac Combat Hostiles Destroyed 58 | . . 3 . 4 5 37 9 Guns 11 | . . 3 . 4 . 4 . Cannons 25 | . . . . . . 17 8 AOE 12 | . . . . . 5 7 . Classes Destroyed 13 | . . 3 . . 2 7 1 Worker 4 | . . 2 . . . 2 . Builder 2 | . . . . . . 2 . Tunneler 1 | . . . . . 1 . . Hauler 2 | . . . . . . 2 . Recycler 3 | . . . . . . 2 1 Operator 2 | . . . . . . 2 . Watcher 1 | . . . . . . 1 . Swarmer 11 | . . 1 . 4 4 2 . Grunt 29 | . . 2 . . . 24 3 Duelist 1 | . . . . . . 1 . Sentry 13 | . . . . . 1 9 3 Hunter 2 | . . . . . . 1 1 Programmer 2 | . . . . . . . 2 Best Kill Streak 11 | . . 2 . 4 5 11 2 Combat Bots Only 10 | . . 2 . 4 4 10 2 Max Kills in Single Turn 4 | . . 2 . 1 4 2 1 Gunslinging 1 | . . 1 . . . . . Exploded 3 | . . . . . 3 1 . Melee . | . . . . . . . . Uniques/NPCs Destroyed . | . . . . . . . . Combat | -11 -10 -10 -10 -9 -8 -8 -7 -------- Run | Yrd Mat Min Exi Min Mat Sto Fac Hostile Shots Fired 440 | . . 8 . 13 24 167 228 Missed 144 | . . 3 . 1 7 52 81 Hits 296 | . . 5 . 12 17 115 147 Projectile 296 | . . 5 . 12 17 115 147 Critical Strikes 9 | . . . . . . 6 3 Part Disruptions 1 | . . . . . . . 1 Damage Taken 4483 | . . 72 . 99 159 1985 2168 Core 1237 | . . 18 . 16 29 463 711 Absorbed by Shields . | . . . . . . . . Regen/Repaired (Parts) 155 | . . . . . . 155 . Core Remaining (%) 65 | 100 . . . 86 . 10 . Volleys Fired 173 | 3 1 7 . 7 5 114 36 Largest 2 | 2 2 2 . 2 1 2 2 Hottest 250 | 90 90 90 . 90 250 250 250 Shots Fired 221 | 6 2 14 . 14 5 115 65 Gun 71 | 6 2 14 . 14 1 34 . Cannon 143 | . . . . . 4 74 65 Launcher 4 | . . . . . . 4 . Special 3 | . . . . . . 3 . Kinetic 93 | . . . . . 1 31 61 Thermal 121 | 6 2 14 . 14 4 77 4 Explosive 4 | . . . . . . 4 . Electromagnetic 3 | . . . . . . 3 . Robot Hit Streak 12 | 2 1 7 . 5 5 12 9 Robot Miss Streak 7 | 2 2 1 . 3 1 5 7 Penetration Max . | . . . . . . . . Secondary Targets 2 | . . 1 . 1 . . . Max Gunslinging Chain 1 | . . 1 . 1 . . . Shots Hit Robots 175 | 3 1 11 . 7 4 92 57 Core Hits 164 | . . 8 . 4 9 86 57 Critical Kills 1 | . . . . . . 1 . Critical Parts Destroyed . | . . . . . . . . Critical Strikes 2 | . . 1 . . . 1 . Burn 1 | . . 1 . . . . . Destroy 1 | . . . . . . 1 . Melee Attacks . | . . . . . . . . Impact . | . . . . . . . . Slashing . | . . . . . . . . Piercing . | . . . . . . . . Sneak Attacks . | . . . . . . . . Combat Hostiles . | . . . . . . . . Follow-up Attacks . | . . . . . . . . Damage Inflicted 5901 | 37 11 130 . 81 196 3997 1449 Guns 543 | 37 11 130 . 81 8 276 . Cannons 3272 | . . . . . 38 2131 1103 Explosions 2056 | . . . . . 150 1560 346 Melee . | . . . . . . . . Ramming . | . . . . . . . . Kinetic 1252 | . . . . . 8 255 989 Thermal 4436 | 37 11 130 . 81 188 3529 460 Explosive 192 | . . . . . . 192 . Electromagnetic 21 | . . . . . . 21 . Impact . | . . . . . . . . Slashing . | . . . . . . . . Piercing . | . . . . . . . . Highest Corruption 8 | . . . . . . . 8 Average Corruption 1 | . . . . . . . 1 Corruption Purged . | . . . . . . . . Corruption Blocked . | . . . . . . . . Effects 6 | . . . . . . . 6 Message Errors 2 | . . . . . . . 2 Matter Fused 1 | . . . . . . . 1 Energy Discharges 2 | . . . . . . . 2 Data Loss (minor) 1 | . . . . . . . 1 Overload Shots . | . . . . . . . . Overflow Damage 65 | . . . . . 6 59 . Projectiles 39 | . . . . . . 39 . Explosions 26 | . . . . . 6 20 . Melee . | . . . . . . . . Knockbacks 11 | . . . . . . . 11 Impact . | . . . . . . . . Kinetic 10 | . . . . . . . 10 Secondary 1 | . . . . . . . 1 Self-Inflicted Damage 160 | . . . . . . 160 . Shots 20 | . . . . . . 20 . Rammed . | . . . . . . . . Targets Rammed . | . . . . . . . . Kicked . | . . . . . . . . Crushed . | . . . . . . . . Highest Temperature 676 | 90 30 88 . 180 375 676 332 Average Temperature 120 | 48 18 32 . 82 150 136 151 Received Heat Transfer 1086 | . . 42 . . 9 819 216 Effects 12 | . . . . . 1 11 . Shutdowns 4 | . . . . . . 4 . Energy Bleed 1 | . . . . . . 1 . Interference 1 | . . . . . 1 . . Matter Decay 1 | . . . . . . 1 . Short Circuit 1 | . . . . . . 1 . Damage (major) 3 | . . . . . . 3 . Damage (core) 1 | . . . . . . 1 . Siege Activations . | . . . . . . . . Martial Activations . | . . . . . . . . Shielding Activations . | . . . . . . . . Robots Disrupted . | . . . . . . . . Combat Hostiles . | . . . . . . . . Robots Corrupted . | . . . . . . . . Combat Hostiles . | . . . . . . . . Parts Fried . | . . . . . . . . Impact Corruptions . | . . . . . . . . Robots Melted 11 | . . . . . . 10 1 Combat Hostiles 10 | . . . . . . 9 1 Parts Melted 48 | . . 1 . 1 3 40 3 Heat Transferred 14874 | 99 25 421 . 211 960 11741 1417 Parts Sabotaged . | . . . . . . . . Parts Stolen . | . . . . . . . . Parts Stripped . | . . . . . . . . Power Chain Reactions . | . . . . . . . . Alert | -11 -10 -10 -10 -9 -8 -8 -7 ------- Run | Yrd Mat Min Exi Min Mat Sto Fac Maximum Alert Level 3 | . . . . . . 3 1 Low Security (%) 58 | 100 100 100 . 100 100 49 4 Level 1 24 | . . . . . . 4 95 Level 2 14 | . . . . . . 36 . Level 3 3 | . . . . . . 9 . Level 4 . | . . . . . . . . Level 5 . | . . . . . . . . High Security . | . . . . . . . . Max Security . | . . . . . . . . Peak Influence 867 | . . 96 . 89 139 867 398 Initial 388 | . . . . . 9 46 388 Average 210 | . . 26 . 19 92 350 281 Influence Increases 2160 | . . 144 . 105 180 1465 266 Destroy 0b10 Robot/C 1240 | . . 100 . 80 100 780 180 Destroy 0b10 Robot/NC 75 | . . 10 . . 5 55 5 Destroy Leader 306 | . . 20 . 10 20 206 50 Allied During Kill 21 | . . 14 . . . 7 . Successful Hack 7 | . . . . . . 7 . Disable Machine 210 | . . . . . 30 180 . Destroy Structure 196 | . . . . . 25 170 1 Lose Combat Pursuer 105 | . . . . 15 . 60 30 Influence Decreases 1994 | . . 120 24 80 95 720 955 Entered New Map 571 | . . . 24 . 16 64 467 Time Decay 1213 | . . 120 . 80 69 546 398 Lost Part 210 | . . . . . 10 110 90 Squads Dispatched 12 | . 1 . . . . 9 2 Investigation 1 | . . . . . . 1 . Extermination 2 | . . . . . . . 2 Reinforcement 6 | . 1 . . . . 5 . Assault . | . . . . . . . . Garrison 3 | . . . . . . 3 . Intercept . | . . . . . . . . Searches Triggered . | . . . . . . . . Construction Impeded 3 | . . . . . . 3 . Haulers Reinforced . | . . . . . . . . Active Scanning Responses . | . . . . . . . . Cargo Convoy Interrupts 1 | . . . . . . . 1 Stealth | -11 -10 -10 -10 -9 -8 -8 -7 --------- Run | Yrd Mat Min Exi Min Mat Sto Fac Distress Signals 6 | . . . . . 2 4 . Communications Jammed . | . . . . . . . . Distress Signals . | . . . . . . . . Times Spotted 94 | . 1 5 . 4 9 51 24 Peak Tracking Total 13 | . 1 3 . 2 5 7 13 Tactical Retreats 5 | . . . . 1 . 3 1 Traps | -11 -10 -10 -10 -9 -8 -8 -7 ------- Run | Yrd Mat Min Exi Min Mat Sto Fac Traps Triggered . | . . . . . . . . Indirectly . | . . . . . . . . Trap Hack Attempts . | . . . . . . . . Triggered . | . . . . . . . . Disarmed . | . . . . . . . . Reprogrammed . | . . . . . . . . Reused . | . . . . . . . . Traps Extracted . | . . . . . . . . Installed . | . . . . . . . . Triggered . | . . . . . . . . Machines | -11 -10 -10 -10 -9 -8 -8 -7 ---------- Run | Yrd Mat Min Exi Min Mat Sto Fac Machines Disabled 14 | . . . . . 2 12 . Max in Single Turn 2 | . . . . . 1 2 . Machines Repaired . | . . . . . . . . Machines Dismantled 3 | . . . . . . 3 . Machines Sabotaged . | . . . . . . . . Overloaded Fab Kills . | . . . . . . . . Hacking | -11 -10 -10 -10 -9 -8 -8 -7 --------- Run | Yrd Mat Min Exi Min Mat Sto Fac Machines Accessed 5 | . . 1 1 . . 1 2 Terminals 1 | . . . . . . . 1 Fabricators 1 | . . . . . . . 1 Repair Stations 1 | . . . . . . 1 . Recycling Units . | . . . . . . . . Scanalyzers . | . . . . . . . . Garrison Access . | . . . . . . . . Total Hacks 7 | . . 1 1 . . 3 2 Successful 5 | . . 1 1 . . 2 1 Failed 2 | . . . . . . 1 1 Catastrophic . | . . . . . . . . Database Lockouts . | . . . . . . . . Manual 1 | . . . 1 . . . . Terminals 1 | . . . . . . . 1 Fabricators 1 | . . . . . . . 1 Repair Stations 3 | . . . . . . 3 . Recycling Units . | . . . . . . . . Scanalyzers . | . . . . . . . . Garrison Access . | . . . . . . . . Terminal Hacks 2 | . . 1 1 . . . . Open Door 1 | . . 1 . . . . . Proto ID Catalog 1 | . . . 1 . . . . Fabricator Hacks 1 | . . . . . . . 1 Network Status 1 | . . . . . . . 1 Repair Station Hacks 2 | . . . . . . 2 . Scan Component 1 | . . . . . . 1 . Repair 1 | . . . . . . 1 . Recycling Unit Hacks . | . . . . . . . . Scanalyzer . | . . . . . . . . Garrison Access Hacks . | . . . . . . . . Unauthorized Hacks . | . . . . . . . . Terminals . | . . . . . . . . Fabricators . | . . . . . . . . Repair Stations . | . . . . . . . . Recycling Units . | . . . . . . . . Scanalyzers . | . . . . . . . . Garrison Access . | . . . . . . . . Data Cores Recovered . | . . . . . . . . Used . | . . . . . . . . Hacking Detections 2 | . . . . . . 1 1 Full Trace Events 1 | . . . . . . 1 . Feedback Events . | . . . . . . . . Feedback Blocked . | . . . . . . . . Robot Schematics Acquired . | . . . . . . . . Robots Built . | . . . . . . . . Authchips . | . . . . . . . . Time . | . . . . . . . . Total Robot Build Rating . | . . . . . . . . Part Schematics Acquired . | . . . . . . . . Parts Built . | . . . . . . . . Authchips . | . . . . . . . . Time . | . . . . . . . . Total Part Build Rating . | . . . . . . . . Parts Repaired 1 | . . . . . . 1 . Time 80 | . . . . . . 80 . Parts Recycled . | . . . . . . . . Recycled Matter . | . . . . . . . . Retrieved Matter . | . . . . . . . . Retrieved Components . | . . . . . . . . Parts Scanalyzed . | . . . . . . . . Part Schematics Acquired . | . . . . . . . . Parts Damaged . | . . . . . . . . Bothacking | -11 -10 -10 -10 -9 -8 -8 -7 ------------ Run | Yrd Mat Min Exi Min Mat Sto Fac Used RIF Installer . | . . . . . . . . Robots Hacked . | . . . . . . . . Non-combat . | . . . . . . . . Combat . | . . . . . . . . Robot Hacks Applied . | . . . . . . . . Relay Couplers Released 3 | . . . . . . . 3 Programmers 3 | . . . . . . . 3 Fabnet Peak Effective % . | . . . . . . . . Robots Rewired . | . . . . . . . . Allies Hacked . | . . . . . . . . Hacks Repelled . | . . . . . . . . Allies | -11 -10 -10 -10 -9 -8 -8 -7 -------- Run | Yrd Mat Min Exi Min Mat Sto Fac Total Allies 2 | . . 2 . . . . . Largest Group 2 | . . 2 2 . . . . Highest-Rated Group 49 | . . 49 49 . . . . Highest-Rated Ally 31 | . . 31 31 . . . . Total Orders 12 | . . 1 8 2 . 1 . ROAM 1 | . . . 1 . . . . EXPLORE 3 | . . . 2 1 . . . RETURN 8 | . . 1 5 1 . 1 . Ally Attacks 18 | . . 5 . . . 13 . Total Damage 159 | . . 62 . . . 97 . Kills 4 | . . 2 . . . 2 . Allies Corrupted . | . . . . . . . . Allies Melted . | . . . . . . . . Intel | -11 -10 -10 -10 -9 -8 -8 -7 ------- Run | Yrd Mat Min Exi Min Mat Sto Fac Active Infowar (turns) . | . . . . . . . . Robot Analysis Total . | . . . . . . . . Derelict Logs Recovered 2 | . . 2 . . . . . Drone Launches 14 | . . 4 2 2 . 6 . Drone Recoveries 14 | . . 1 5 2 . 6 . Exploration | -11 -10 -10 -10 -9 -8 -8 -7 ------------- Run | Yrd Mat Min Exi Min Mat Sto Fac Turns Passed 4760 | 67 29 713 687 594 157 1561 952 Spaces Moved 1581 | 35 17 320 224 231 58 358 338 Core 36 | 6 . . . . . 19 11 Treads 1462 | 29 17 320 224 231 58 256 327 Legs 83 | . . . . . . 83 . Wheels . | . . . . . . . . Hover . | . . . . . . . . Flight . | . . . . . . . . Fastest Speed 50 | 50 160 160 240 240 160 160 50 Average Speed 240 | 141 160 209 240 240 230 293 232 Slowest Speed 1150 | 160 160 240 240 240 240 1150 1150 Overloaded Moves . | . . . . . . . . Propulsion Burnouts . | . . . . . . . . Robots Hopped . | . . . . . . . . Potential Cave-ins . | . . . . . . . . Cave-ins Triggered . | . . . . . . . . Exploration Rate (%) 39 | 4 8 67 92 57 11 68 11 Regions Visited 7 Branch Regions 4 Pre-discovered Areas 1 | . . 1 . . . . . Known Exits Taken 1 | . . . . . 1 . . Unknown Exits Taken 6 | 1 1 1 1 1 . 1 . Scrap Searched 3 | . . 1 . 2 . . . Spaces Dug 17 | . . . . . 6 11 . Terrain Destroyed 183 | . . . . . 24 159 . Melee . | . . . . . . . . Projectile 7 | . . . . . 1 6 . AOE 176 | . . . . . 23 153 . Terrain Rammed . | . . . . . . . . Walls Destroyed . | . . . . . . . . Machines Disabled . | . . . . . . . . Actions | -11 -10 -10 -10 -9 -8 -8 -7 --------- Run | Yrd Mat Min Exi Min Mat Sto Fac Total 2257 | 47 17 349 375 258 80 689 442 Wait 340 | . . 13 146 14 8 119 40 Move 1574 | 34 16 319 223 230 57 357 338 Hop . | . . . . . . . . Pick Up 44 | 5 . 3 2 2 1 21 10 Fast Attach . | . . . . . . . . Attach 57 | 5 . 4 1 2 3 34 8 Detach 28 | . . 2 2 1 4 14 5 Swap 7 | . . 1 1 1 . 2 2 Drop 10 | . . . . 1 2 4 3 Fire 173 | 3 1 7 . 7 5 114 36 Melee . | . . . . . . . . Ram . | . . . . . . . . Kick . | . . . . . . . . Crush . | . . . . . . . . Escape Stasis . | . . . . . . . . Rewire . | . . . . . . . . Trap . | . . . . . . . . Miscellaneous 24 | . . . . . . 24 . Route ------- -11/Scrapyard -10/Materials -10/Mines (discovered 3 exits: [*Mat] / *Exi / [*Sub]) -10/Exiles (discovered 2 exits: [*Min x2]) -9/Mines -8/Materials -8/Storage -7/Factory (discovered 1 exit: [*Fac]) History --------- Turn | Location | Event 3 | -11/Scrapyard | Discovered new exit (range 15) 68 | -11/Scrapyard | Entered Materials 75 | -10/Materials | Discovered new exit (range 13) 97 | -10/Materials | Entered Mines 147 | -10/Mines | Discovered new exit (range 11) 181 | -10/Mines | Met a Derelict bent on vengeance 313 | -10/Mines | Build established: Mutant 456 | -10/Mines | Discovered new exit (range 6) 651 | -10/Mines | Learned location of Mines (-9) 688 | -10/Mines | Found the Drone Emporium 706 | -10/Mines | Found Prototype Device 707 | -10/Mines | Identified Thief Drone Bay 791 | -10/Mines | Deemed a non-threat by the Exiles lab entrance 791 | -10/Mines | Discovered new exit (range 5) 810 | -10/Mines | Entered Exiles 810 | -10/Exiles | Accompanied by 5 allies 840 | -10/Exiles | Led the pair of lost Derelicts to a safe place 854 | -10/Exiles | Discovered new exit (range 15) 878 | -10/Exiles | Met 8R-AWN 916 | -10/Exiles | Met EX-HEX 991 | -10/Exiles | Met EX-BIN 1019 | -10/Exiles | Aligned with FarCom system 1022 | -10/Exiles | Given EX-Vault access code 1079 | -10/Exiles | Opened EX-Vault 1099 | -10/Exiles | Found Firepult 1104 | -10/Exiles | Found Supersonic Drone Bay 1138 | -10/Exiles | Discovered new exit (range 58) 1303 | -10/Exiles | Warned to stay clear of 0b10 Research branches 1365 | -10/Exiles | Met EX-DEC 1497 | -10/Exiles | Stole two prototypes: Supersonic Drone Bay, Firepult 1497 | -10/Exiles | Entered Mines 2053 | -9/Mines | Discovered new exit (range 15) 2091 | -9/Mines | Entered Materials 2091 | -8/Materials | Evolved 4 slots: Power x1, Utility x3 2092 | -8/Materials | Identified exit to Storage 2248 | -8/Materials | Entered Storage 2250 | -8/Storage | FarCom data flow suspended 2639 | -8/Storage | Lost 3 parts (1p2n) 3016 | -8/Storage | Garrison activated, responded to threat 3094 | -8/Storage | Core integrity fell below 50% 3127 | -8/Storage | Destroyed 10 combat bots 3283 | -8/Storage | Lost 3 parts (1p2n) 3432 | -8/Storage | Core integrity fell below 20% 3455 | -8/Storage | Discovered new exit (range 5) 3734 | -8/Storage | Repaired Ion Burst Cannon 3809 | -8/Storage | Entered Factory 3809 | -7/Factory | Evolved 2 slots: Propulsion x2 4443 | -7/Factory | Discovered new exit (range 15) 4722 | -7/Factory | Cargo convoy interrupted 4749 | -7/Factory | Core integrity fell below 50% 4756 | -7/Factory | Core integrity fell below 20% 4761 | -7/Factory | Destroyed by P-60 Hacker with Shock Rifle Last Messages --------------- Penetrated by Slug. Slug penetrates H-55 Commando. Firepult emits a large uncontrolled burst of heat. Several Firepult components seem to have fused. H-55 Commando destroyed. Penetrated by Slug. Hcp. Storage Unit destroyed. Slug penetrates Wall. UHYTOQ&P9SW9MDJYMIQ8Z%JFMIYRE6V Penetrated by Slug. Dropped Grenade Launcher. Acquired Supersonic Drone Bay. U-05 Engineer lays Concrete. Penetrated by Slug. P-60 Hacker destroyed. R-06 Scavenger collects Assault Rifle. Dropped Flak Cannon. Acquired Ion Burst Cannon. Slug penetrates P-60 Hacker. Map ----- +----------------------------------------------------+ | ???????????# #???????????????????????? | | ???????????## """ #???????????????????????? | | ????????????# """"" #???????????????????????? | | ????????????# """"" #???????????????????????? | | ????????????# #???????????????????????? | | ????????????######+#######??????????????????###??? | | ???????????????# #?????????????????????? ? | | ???????????????# #?????????????????????? | | ???????????????# #?????????????????????# | | ??############## #?????????????????????# | | ??# + #??????#??????????????# | | ?????""""" ] # #????? #??????????????# # | | ???? """"" # #?#### ##?????????????# # | | ??# """ # #?# #?????????????# # | | ??# # ### #?????????????# # | | ??# """"" + #?????????????# # | | ??# """"" ! # ### ! #?????????????+ + | | ?????""" # #?# #?????????????# # | | ??? # #?#######?????????????# # | | ??# # ####################### # | | ??# # u "" # | | ??# # x %%" # | | ??#+############ h % """" # | | ???????????????# ] =px r """" # | | ???????????????# <[!xh =i ""%" # | | ???????????????######## !@[!###/##### # | | ??????????????????????# ][ |# ??# """" # | | ??????????????????????#######" ## """" # | | ????????????????????????????#" ## """" # | | ????????????????????????????#" ! ## # | | ????????????????????????????#T ## """" # | | ????????????????????????????#" ## """" # | | ????????????????????????????#" ## """" # | | ????????????????????????????#" ## # | | ????????????????????????????# =## """" # | | ????????????????????????????? """ ## ""?" # | | ????????????????????????????? """ ## "??" # | | ????????????????????????????? """ ## ??? + | | ????????????????????????????? ??? ## "??? # | | ?????????????????????????????????? #? "??? # | | ????????????????????????????????????? ????? ? | | ?????????????????????????????????????????????????? | | ?????????????????????????????????????????????????? | | ?????????????????????????????????????????????????? | | ?????????????????????????????????????????????????? | | ?????????????????????????????????????????????????? | | ?????????????????????????????????????????????????? | | ?????????????????????????????????????????????????? | | ?????????????????????????????????????????????????? | | ?????????????????????????????????????????????????? | +----------------------------------------------------+ Best States ------------- Heat Dissipation 80 Energy Generation 23 Energy Capacity 290 Matter Stores 300 Matter Capacity 300 Sight Range 16 Terrain Scan Density 10 Armor Coverage 600 Evasion (%) 50 Recoil Reduction 3 Item Schematics ----------------- None Robot Schematics ------------------ None Fabricated ------------ Nothing Repaired ---------- Ion Burst Cannon | 8% | -8/Storage Alien Tech Used ----------------- None Achievements -------------- None Challenges ------------ None Game ------ Seed SpreadMiniCorpse Manual? 0 Play Time 00:26:02 Cumulative 155.1 hours Start 2025.09.22 @ 10:49:47 End 2025.09.22 @ 11:26:55 Sessions 1 Manual Loads 0 Difficulty Rogue Special Mode None Game No. 505 Rogue 504 Adventurer 1 Explorer 0 Win Type - Total 0 Types 0/0/0/0/0/0/0/0/0/0 Lore% 55 Gallery% 53 Achievement% 42 Wizard Run 0 Options --------- Layout 1 ASCII 0 Keyboard 0 Movement Mouse Keybinds 0 Fullscreen 2 Font 24/Smallcaps Map View 50x35 Zoom Use 0% Tactical HUD 0 Map Filters NONE Filters NONE Steam 1 RUN: 941b7e97-cb68-43b4-9aea-ef197b0573db